Cogmind - Beta 16 @@@ ROGUE MODE // 2026.01.09 @ 17:58:27 Player: lrcTempest Result: Destroyed by H-88 Terminator with KE Penetrator Performance ------------- Evolutions (9) 4500 Regions Visited (19) 3800 Robots Destroyed (457) 2285 Value Destroyed (20479) 20479 Prototype IDs (37) 740 Alien Tech Used (0) 0 Bonus (9240) 9240 TOTAL SCORE: 41044 Bonus ------- Triggered High Security 500 High Alert Combat Kills 4972 Follower Combat Kills 758 Entered Garrisons 200 Network Hubs Disabled 400 Aligned with FarCom 300 Met R17 at Cetus 500 Met R17 at Research 2000 Friendly Fire -390 Cogmind --------- Core Integrity 0/1600 Matter 252/300 Energy 44/100 System Corruption 38% Temperature Cool (0) Movement Immobile (Siege) Location -1/Command Parts ------- > --- POWER (3) -------- (None) > --- PROPULSION (6) --- Advanced Heavy Siege Treads > --- UTILITY (12) ----- Experimental Core Analyzer > --- WEAPON (4) ------- Enhanced Quantum Rifle > --- INVENTORY (5) ---- Matter Compressor (250) Peak State ------------ > --- POWER ------------ Quantum Reactor Quantum Reactor Light Quantum Reactor > --- PROPULSION ------- Biometal Leg Biometal Leg Biometal Leg Biometal Leg Improved Thunder Leg Improved Thunder Leg > --- UTILITY ---------- Advanced Heat Sink Advanced Heat Sink Advanced Heat Sink Advanced Targeting Computer Experimental Targeting Computer Experimental Core Analyzer Advanced Weapon Cycler Centrium Medium Armor Plating Centrium Medium Armor Plating Centrium Medium Armor Plating Centrium Medium Armor Plating Improved Thermal Shield > --- WEAPON ----------- Enhanced Quantum Rifle Enhanced Quantum Rifle Nova Cannon Gamma Bomb Array > --- INVENTORY -------- Matter Compressor Centrium Medium Armor Plating Centrium Medium Armor Plating Heavy Machine Gun Power Maul [Rating: 196] Favorites ----------- Power Quantum Reactor Engine Improved Deuterium Engine Power Core Enhanced Fission Core Reactor Quantum Reactor Propulsion Carbon-fiber Leg Treads Advanced Heavy Siege Treads Leg Carbon-fiber Leg Utility High-capacity Storage Unit Device Improved Thermal Shield Storage High-capacity Storage Unit Processor Advanced Targeting Computer Protection Centrium Medium Armor Plating Weapon Improved Heavy Machine Gun Energy Gun Gatling Laser Energy Cannon Nova Cannon Ballistic Gun Improved Heavy Machine Gun Ballistic Cannon Heavy Mass Driver Launcher Gamma Bomb Array Special Weapon Mining Laser Impact Weapon Power Maul Build | -11 -10 -10 -10 -9 -8 -7 -7 -7 -6 -5 -5 -5 -5 -5 -4 -3 -2 -1 -1 ------- Run | Yrd Mat Min Exi Min Mat Fac Gar Fac Fac Fac Ext Cet Arc Hub Fac Res Res Acc Com Slots Evolved 18 | . . . . . 4 2 . . 2 2 . . . . 2 2 2 2 . Power 2 | . . . . . . . . . 1 . . . . . . . 1 . . Propulsion 4 | . . . . . 2 1 . . . 1 . . . . . . . . . Utility 10 | . . . . . 2 1 . . 1 1 . . . . 1 2 . 2 . Weapon 2 | . . . . . . . . . . . . . . . 1 . 1 . . Parts Attached 268 | 7 11 4 . 3 33 10 14 20 26 18 11 2 2 9 7 13 38 21 19 Power 37 | 1 3 . . . 2 . 2 2 3 4 1 . . . . 2 9 3 5 Engine 10 | 1 3 . . . 1 . 2 2 1 . . . . . . . . . . Core 7 | . . . . . 1 . . . 2 3 1 . . . . . . . . Reactor 20 | . . . . . . . . . . 1 . . . . . 2 9 3 5 Propulsion 73 | 2 2 . . 1 10 3 5 6 7 5 4 2 . 2 2 5 11 5 1 Treads 1 | . . . . . . . . . . . . . . . . . . . 1 Leg 72 | 2 2 . . 1 10 3 5 6 7 5 4 2 . 2 2 5 11 5 . Wheel . | . . . . . . . . . . . . . . . . . . . . Hover . | . . . . . . . . . . . . . . . . . . . . Flight . | . . . . . . . . . . . . . . . . . . . . Utility 93 | 2 2 2 . 1 10 3 5 6 11 5 4 . 1 4 5 6 11 8 7 Device 44 | 1 1 1 . 1 4 2 1 4 5 3 3 . 1 1 3 3 3 2 5 Storage 3 | 1 1 . . . 1 . . . . . . . . . . . . . . Processor 11 | . . . . . 2 . . . 2 1 . . . . 2 . 3 . 1 Hackware . | . . . . . . . . . . . . . . . . . . . . Protection 35 | . . 1 . . 3 1 4 2 4 1 1 . . 3 . 3 5 6 1 Artifact . | . . . . . . . . . . . . . . . . . . . . Weapon 65 | 2 4 2 . 1 11 4 2 6 5 4 2 . 1 3 . . 7 5 6 Energy Gun 18 | 1 2 . . . 2 1 . 5 . . . . . . . . 1 3 3 Energy Cannon 4 | . . . . . . . . . . . . . 1 . . . 1 . 2 Ballistic Gun 28 | 1 2 1 . . 6 1 2 . 4 4 1 . . 2 . . 3 1 . Ballistic Cannon 2 | . . . . . . . . 1 . . . . . . . . . . 1 Launcher 7 | . . . . 1 2 1 . . 1 . . . . . . . 2 . . Special Weapon 2 | . . 1 . . . . . . . . . . . 1 . . . . . Impact Weapon 4 | . . . . . 1 1 . . . . 1 . . . . . . 1 . Slashing Weapon . | . . . . . . . . . . . . . . . . . . . . Piercing Weapon . | . . . . . . . . . . . . . . . . . . . . Special Melee Weapon . | . . . . . . . . . . . . . . . . . . . . Unidentified Prototypes 7 | . . . . . 3 1 . . . . . . . . . . 3 . . Parts Lost 89 | . 1 1 . . 2 3 11 7 6 5 . 1 . 6 . . 7 13 26 Power 13 | . 1 . . . . . . 2 2 . . . . . . . 2 2 4 Propulsion 22 | . . . . . 1 2 5 3 2 1 . . . 1 . . 1 2 4 Utility 34 | . . . . . 1 1 4 1 2 2 . . . 4 . . 1 7 11 Weapon 20 | . . 1 . . . . 2 1 . 2 . 1 . 1 . . 3 2 7 Highest Loss Streak 23 | . 1 1 . . 1 1 3 3 4 4 . 1 . 3 . . 3 5 23 To Critical Strikes 4 | . . . . . . . . . 1 . . 1 . . . . . 2 . Average Backups 16 | 1 7 14 14 14 18 18 18 19 18 19 18 17 17 17 17 18 19 12 4 Power 1 | . . 1 . . 1 2 1 . . . 1 1 2 2 2 1 . . . Propulsion 2 | . . 2 2 1 1 1 2 1 . 1 2 1 . . 1 3 5 3 . Utility 6 | . 2 6 5 6 6 7 5 7 6 6 6 6 7 7 7 7 7 4 1 Weapon 6 | . 3 5 5 6 7 6 7 8 9 9 9 7 7 6 5 5 4 2 2 Tool/Special . | . . . . . . . . . . . . . . . . . . . . Unused Backups 52 | . . 1 1 . 12 4 2 . 5 7 2 . . 2 1 6 3 5 1 Power 9 | . . . 1 . 4 . . . 1 2 . . . 1 . . . . . Propulsion 9 | . . . . . 2 . . . . . 1 . . . . 2 . 4 . Utility 24 | . . . . . 2 3 1 . 3 3 1 . . 1 1 4 3 1 1 Weapon 7 | . . 1 . . 3 . 1 . 1 1 . . . . . . . . . Tool/Special 3 | . . . . . 1 1 . . . 1 . . . . . . . . . Average Slot Usage (%) 94 | . 91 98 100 100 98 98 97 88 94 91 100 99 100 96 92 94 96 94 56 Engine 4 | . 14 14 14 14 5 7 7 7 7 . . . . . . . . . . Core 2 | . . . . . 3 . . . 3 5 11 10 11 11 10 3 . . . Reactor 2 | . . . . . . . . . . 2 . . . . . 5 11 10 7 Leg 30 | . 28 28 28 28 35 37 36 37 29 29 35 35 35 34 30 28 25 23 9 Device 10 | . 5 11 14 14 12 4 6 7 9 11 11 17 17 11 9 16 10 13 9 Storage 6 | . 14 14 14 14 9 7 7 7 6 5 5 5 5 5 5 4 4 2 . Processor 10 | . . . . . 4 14 7 7 11 14 16 11 11 11 20 19 14 14 10 Protection 8 | . . 2 . . 8 9 14 7 10 6 5 5 5 6 . 1 12 14 9 Energy Gun 2 | . 12 7 . 13 . . . 6 3 . . . . . . . . 5 1 Ballistic Gun 11 | . 15 12 14 14 17 12 12 1 8 10 10 8 8 9 12 13 16 5 . Peak Build Rating 196 | 7 9 9 9 10 41 48 52 57 75 89 95 99 100 100 106 136 179 196 170 Average Rating 79 | 5 6 8 8 9 30 45 48 53 62 78 89 94 99 95 102 125 163 186 106 On Entrance 65 | . 7 9 8 9 10 40 46 48 48 64 86 94 99 100 84 106 135 176 137 Avg Prop Armor Cover (%) 5 | . . . . . 5 . . . . . . . . . . . . . . Naked Turns . | . . . . . . . . . . . . . . . . . . . . Heaviest Build 175 | 11 31 31 29 31 68 75 75 86 97 86 87 83 93 108 100 125 165 175 97 Greatest Support 168 | 20 20 20 20 20 66 86 83 83 86 111 124 132 132 132 123 143 168 168 109 Greatest Overweight (x) 7 | . 1 1 1 1 4 1 1 2 1 1 . . . . 1 . 1 1 7 Average Overweight (x) . | . . 1 1 1 . . . . . . . . . . . . . . . Largest Inventory Capacity 20 | 8 15 15 15 15 20 20 20 20 20 20 20 20 20 20 20 20 20 20 5 Average Capacity 18 | 7 10 15 15 15 19 20 20 20 20 20 20 20 20 20 20 20 20 12 5 Most Carried 20 | 4 15 15 15 15 20 20 20 20 20 20 20 20 20 20 20 20 20 20 5 Average Carried 17 | 1 7 14 14 14 18 19 19 19 18 19 19 19 19 19 17 18 19 12 4 Final Capacity 20 | 8 15 15 15 15 20 20 20 20 20 20 20 20 20 20 20 20 20 5 5 Final Carried 20 | 1 15 15 14 15 19 20 19 17 20 20 20 20 19 19 16 19 20 3 1 Class Distribution -------------------- 40% | Scavenger-Mutant 30% | Mutant 13% | Scavenger-Gunner 5% | Scavenger-Tank 3% | Tank Dominant Class ---------------- Mutant | -10/Materials Mutant | -10/Mines Mutant | -10/Exiles Scavenger-Mutant | -9/Mines Mutant | -8/Materials Mutant | -7/Factory Mutant | -7/Garrison Scavenger-Mutant | -7/Factory Scavenger-Mutant | -6/Factory Scavenger-Mutant | -5/Factory Scavenger-Mutant | -5/Extension Scavenger-Mutant | -5/Cetus Scavenger-Mutant | -5/Archives Mutant | -5/Hub_04(d) Scientist-Gunner | -4/Factory Scavenger-Gunner | -3/Research Scavenger-Gunner | -2/Research Scavenger-Gunner | -1/Access Scavenger-Gladiator | -1/Command Resources | -11 -10 -10 -10 -9 -8 -7 -7 -7 -6 -5 -5 -5 -5 -5 -4 -3 -2 -1 -1 ----------- Run | Yrd Mat Min Exi Min Mat Fac Gar Fac Fac Fac Ext Cet Arc Hub Fac Res Res Acc Com Matter Collected 16111 | 243 296 103 . 124 1364 1056 1114 1008 1296 764 741 238 198 636 108 1223 3914 1297 388 Remotely . | . . . . . . . . . . . . . . . . . . . . Salvage Created 23491 | 160 566 . . 64 1220 996 1038 1306 1463 1446 1742 290 310 879 183 1303 4864 4704 957 Parts 1142 | 11 37 . . 12 91 58 58 60 85 61 80 10 11 36 15 46 223 218 30 Haulers Intercepted 25 | . 1 . . . 5 1 . 1 1 . 6 . . 2 . 3 4 1 . Recyclers Shooed 10 | . 1 . . . . . . . 2 . . . . . 2 1 4 . . Parts Field Recycled . | . . . . . . . . . . . . . . . . . . . . Retrieved Matter . | . . . . . . . . . . . . . . . . . . . . Parts Self-Destructed . | . . . . . . . . . . . . . . . . . . . . Prevented . | . . . . . . . . . . . . . . . . . . . . Parts Restored . | . . . . . . . . . . . . . . . . . . . . Kills | -11 -10 -10 -10 -9 -8 -7 -7 -7 -6 -5 -5 -5 -5 -5 -4 -3 -2 -1 -1 ------- Run | Yrd Mat Min Exi Min Mat Fac Gar Fac Fac Fac Ext Cet Arc Hub Fac Res Res Acc Com Combat Hostiles Destroyed 316 | . 12 . . 2 21 24 22 23 27 14 18 4 4 11 3 16 47 54 14 Melee 5 | . . . . . . . . . . . . . . . . . 1 1 3 Guns 227 | . 12 . . 1 20 20 17 14 21 14 6 1 4 11 3 16 43 21 3 Cannons 10 | . . . . . . . . 6 . . . . . . . . . 3 1 AOE 46 | . . . . 1 1 4 5 1 6 . 11 2 . . . . 2 13 . Classes Destroyed 21 | 2 6 . . . 3 4 . 3 1 . . . . . . . 2 . . Worker 40 | . 2 . . . 4 1 . 3 1 . 3 . . 2 1 10 10 2 1 Builder 29 | . 1 . . . 1 1 . 2 1 5 3 . . . 1 1 8 5 . Tunneler 8 | 3 . . . 2 1 1 . . . . 1 . . . . . . . . Hauler 25 | . 1 . . . 5 1 . 1 1 . 6 . . 2 . 3 4 1 . Recycler 16 | 1 1 . . . 1 . . 1 1 2 1 . . . . 1 6 1 . Mechanic 3 | . . . . . . . . . 1 . . . . . . . 1 1 . Operator 4 | . . . . . . 1 . . . . 1 . 1 . . . 1 . . Watcher 13 | . 1 . . . 3 . . 2 . 1 . 1 . . . 2 3 . . Swarmer 59 | . 6 . . 2 6 12 3 . 10 . 4 . . . . 8 . 8 . Cutter 3 | . . . . . 3 . . . . . . . . . . . . . . Saboteur 2 | . . . . . . . . . . . . . . . . . 1 1 . Grunt 99 | . 6 . . . 4 6 8 11 2 8 11 . . 4 . 3 11 19 6 Brawler 8 | . . . . . . 1 . 1 . 1 . . . 1 . 1 . 3 . Duelist 3 | . . . . . . 1 . 1 . . . . . . . . . 1 . Protector 1 | . . . . . . . . 1 . . . . . . . . . . . Sentry 35 | . . . . . 7 2 5 3 1 2 2 . 4 2 1 . 1 3 2 Specialist 12 | . . . . . . . . 2 7 . . . . . . . 3 . . Hunter 28 | . . . . . 1 . 5 1 1 3 . . . 2 . 1 6 8 . Programmer 59 | . . . . . . 2 1 2 6 . 1 . . 2 2 3 22 12 6 Heavy 2 | . . . . . . . . 1 . . . . . . . . 1 . . Cetus Guard 4 | . . . . . . . . . . . . 4 . . . . . . . Executioner 2 | . . . . . . . . . . . . . . . . . 2 . . Butcher 2 | . . . . . . . . . . . 2 . . . . . . . . Best Kill Streak 21 | 3 7 . . 1 4 8 5 6 9 6 12 4 3 7 2 21 12 13 3 Combat Bots Only 14 | . 5 . . 1 4 7 5 4 6 5 6 3 3 5 2 14 10 11 3 Max Kills in Single Turn 5 | 1 1 . . 1 2 5 2 1 3 2 3 2 1 2 1 2 3 4 1 Gunslinging 1 | . . . . . 1 . . . . . . . . . . 1 . 1 . Exploded 4 | . . . . 1 1 4 2 1 3 . 3 1 . . . . 2 3 . Melee 1 | . . . . . . . . . . . . . . . . . 1 1 1 Uniques/NPCs Destroyed . | . . . . . . . . . . . . . . . . . . . . Combat | -11 -10 -10 -10 -9 -8 -7 -7 -7 -6 -5 -5 -5 -5 -5 -4 -3 -2 -1 -1 -------- Run | Yrd Mat Min Exi Min Mat Fac Gar Fac Fac Fac Ext Cet Arc Hub Fac Res Res Acc Com Hostile Shots Fired 2504 | . 62 . . 7 108 171 249 195 159 81 46 26 31 126 15 74 345 464 345 Missed 818 | . 14 . . 2 28 52 87 62 38 17 18 12 11 26 . 23 124 189 115 Hits 1686 | . 48 . . 5 80 119 162 133 121 64 28 14 20 100 15 51 221 275 230 Melee 24 | . . . . . 14 5 . . . 1 . . . . . 3 1 . . Projectile 1662 | . 48 . . 5 66 114 162 133 121 63 28 14 20 100 15 48 220 275 230 AOE 2 | . . . . . 1 . . . . . . . . 1 . . . . . Critical Strikes 90 | . . . . . 11 4 3 2 8 . 1 5 1 3 1 3 18 13 17 Part Disruptions 2 | . . . . . . . . . . . . . . . . . 2 . . Damage Taken 29606 | . 550 36 . 71 1001 1360 1706 1944 1882 1161 690 397 506 1811 156 655 4555 5954 5171 Core 3101 | . 133 . . 16 156 167 133 217 161 149 82 26 . 45 19 47 148 236 1366 Absorbed by Shields 1406 | . . . . . 131 197 185 67 62 . . . . . 165 599 . . . Ignored by Resistances 974 | . . . . . . . . . 36 . 60 . 31 10 . 83 160 372 222 Regen/Repaired (Parts) 132 | . . . . . . . . . . . . . . . 132 . . . . Core Remaining (%) 74 | 100 . . . 40 71 . . 26 81 . . . . 69 98 96 89 . . Volleys Fired 1206 | 15 65 1 . 6 101 83 106 106 71 65 69 19 27 60 27 61 173 116 35 Largest 4 | 2 2 1 . 2 2 2 2 2 2 2 2 2 2 2 3 3 4 4 2 Hottest 273 | 60 85 100 . 85 85 72 69 160 160 66 72 36 90 90 90 45 160 273 233 Shots Fired 2623 | 30 130 1 . 11 203 159 203 174 134 130 127 28 54 113 57 183 615 234 37 Gun 2409 | 30 130 . . 10 201 150 197 139 127 130 112 16 53 111 46 183 604 153 17 Cannon 107 | . . . . . . . . 29 . . . . 1 2 11 . 8 36 20 Launcher 106 | . . . . 1 2 9 6 6 7 . 15 12 . . . . 3 45 . Special 1 | . . 1 . . . . . . . . . . . . . . . . . Kinetic 2180 | 15 68 . . 5 191 150 197 76 119 130 112 16 53 111 46 183 604 86 18 Thermal 334 | 15 62 1 . 5 10 . . 92 8 . . . 1 2 11 . 8 100 19 Explosive 25 | . . . . 1 2 6 4 1 7 . 4 . . . . . . . . Electromagnetic 84 | . . . . . . 3 2 5 . . 11 12 . . . . 3 48 . Robot Hit Streak 53 | 5 10 . . 4 13 13 12 26 15 30 16 10 13 13 11 34 21 53 9 Robot Miss Streak 8 | 2 5 . . 2 5 4 3 8 4 2 2 1 2 4 2 3 5 2 2 Penetration Max 3 | . . . . . . . . 1 3 2 . . . 1 . . 2 1 . Secondary Targets 32 | . . . . . 4 2 1 1 1 5 . . . 1 . 3 9 5 . Max Gunslinging Chain 1 | . . . . . 1 1 1 1 1 1 . . . 1 . 1 1 1 . Shots Hit Robots 1747 | 20 87 . . 4 128 95 120 129 90 102 77 15 46 83 30 136 385 133 67 Core Hits 988 | 6 31 . . 6 59 51 50 76 62 54 69 22 19 37 12 66 181 176 11 Critical Kills 19 | . . . . . . . 1 . 5 9 . . . . . . 3 1 . Critical Parts Destroyed 49 | . . . . . . 2 . . 9 11 1 . . 2 . 2 5 5 12 Critical Strikes 74 | . 1 . . . 1 2 1 1 14 22 1 . . 2 . 2 8 6 13 Burn 2 | . 1 . . . 1 . . . . . . . . . . . . . . Destroy 50 | . . . . . . 1 1 . 14 22 1 . . 2 . 1 8 . . Blast 1 | . . . . . . . . 1 . . . . . . . . . . . Smash 21 | . . . . . . 1 . . . . . . . . . 1 . 6 13 Melee Attacks 137 | . . . . . 3 9 23 . 2 . 1 . . 2 1 5 14 18 59 Impact 137 | . . . . . 3 9 23 . 2 . 1 . . 2 1 5 14 18 59 Slashing . | . . . . . . . . . . . . . . . . . . . . Piercing . | . . . . . . . . . . . . . . . . . . . . Sneak Attacks 3 | . . . . . . 1 . . . . . . . . . 1 . . 1 Combat Hostiles 1 | . . . . . . . . . . . . . . . . . . . 1 Follow-up Attacks 8 | . . . . . . . . . . . . . . . . . . 1 7 Damage Inflicted 50797 | 189 1050 . . 174 2268 2265 2135 3787 2590 1785 3473 1262 1038 1940 817 3664 10882 8530 2948 Guns 36860 | 189 1050 . . 56 2175 1735 1760 2480 2146 1785 1923 318 1002 1940 730 3337 10523 3235 476 Cannons 1767 | . . . . . . . . 1016 . . . . 36 . . . . 331 384 Explosions 8852 | . . . . 118 93 405 375 291 444 . 1539 944 . . . . 315 4328 . Melee 2947 | . . . . . . 125 . . . . . . . . . 98 . 636 2088 Ramming 371 | . . . . . . . . . . . 11 . . . 87 229 44 . . Kinetic 33417 | 89 554 . . 10 2072 1735 1760 1708 1957 1785 1923 318 1002 1940 730 3337 10523 1590 384 Thermal 6224 | 100 496 . . 46 103 . . 1788 189 . 317 191 36 . . . . 2482 476 Explosive 1509 | . . . . 118 93 350 330 . 444 . 174 . . . . . . . . Electromagnetic 6329 | . . . . . . 55 45 291 . . 1048 753 . . . . 315 3822 . Impact 2947 | . . . . . . 125 . . . . . . . . . 98 . 636 2088 Slashing . | . . . . . . . . . . . . . . . . . . . . Piercing . | . . . . . . . . . . . . . . . . . . . . Highest Corruption 38 | . . . . . 2 5 5 6 2 3 3 2 2 2 1 4 23 9 38 Average Corruption 5 | . . . . . 2 3 5 5 1 2 1 1 1 1 1 3 13 5 17 Corruption Purged 8 | . . . . . . . . 3 . . 3 . 2 . . . . . . Corruption Blocked . | . . . . . . . . . . . . . . . . . . . . Effects 293 | . . . . . 25 6 31 39 9 8 8 4 1 . 2 26 63 32 39 Message Errors 66 | . . . . . 8 3 5 6 1 3 3 1 . . 1 9 13 7 6 Matter Fused 62 | . . . . . 4 1 9 10 2 1 2 1 . . 1 1 7 8 15 Heat Flow Errors 30 | . . . . . 4 . 6 5 2 . . . . . . 3 7 1 2 Energy Discharges 19 | . . . . . 1 1 3 3 1 1 2 . . . . . 2 1 4 Parts Rejected 6 | . . . . . . . . 1 1 . . 1 . . . . 2 . 1 Parts Fused 2 | . . . . . 1 . . 1 . . . . . . . . . . . Data Loss (minor) 36 | . . . . . 3 . 2 6 . 3 1 . . . . 5 8 6 2 Data Loss (major) 20 | . . . . . 2 . 1 4 . . . . . . . 4 1 6 2 Misfires 11 | . . . . . 1 . 1 . . . . 1 1 . . 1 5 1 . Alerts 8 | . . . . . 1 1 2 1 1 . . . . . . 2 . . . Misdirections 5 | . . . . . . . . . . . . . . . . . . . 5 Weapon Failures 28 | . . . . . . . 2 2 1 . . . . . . 1 18 2 2 Overload Shots . | . . . . . . . . . . . . . . . . . . . . Overflow Damage 1439 | . . . . . . 132 . 34 . . . 9 . . . 132 3 293 836 Projectiles 113 | . . . . . . . . 34 . . . . . . . . . 32 47 Explosions 17 | . . . . . . 7 . . . . . 9 . . . . . 1 . Melee 1309 | . . . . . . 125 . . . . . . . . . 132 3 260 789 Knockbacks 30 | . . . . . . . . 8 . . . . . . 3 3 . 1 15 Impact 19 | . . . . . . . . . . . . . . . 3 3 . 1 12 Kinetic 8 | . . . . . . . . 7 . . . . . . . . . . 1 Secondary 3 | . . . . . . . . 1 . . . . . . . . . . 2 Self-Inflicted Damage 622 | . . . . 33 . . . . 54 . 117 37 . . . . 43 338 . Shots 39 | . . . . 1 . . . . 1 . 5 2 . . . . 4 26 . Rammed . | . . . . . . . . . . . . . . . . . . . . Targets Rammed 18 | . . . . . . . . . . . 1 . . . 5 10 2 . . Kicked 18 | . . . . . . . . . . . 1 . . . 5 10 2 . . Crushed . | . . . . . . . . . . . . . . . . . . . . Highest Temperature 444 | 40 250 20 . 24 217 314 237 334 319 171 74 34 71 311 72 205 444 349 336 Average Temperature 83 | 20 86 10 . 13 42 111 56 81 83 46 23 17 21 73 36 85 102 114 78 Received Heat Transfer 3523 | . 231 . . . 283 416 320 461 99 291 174 . 36 198 12 21 189 351 441 Effects 24 | . 1 . . . . 2 . . 1 . . . . 3 . . 13 4 . Shutdowns 4 | . . . . . . . . . 1 . . . . . . . 3 . . Energy Bleed 5 | . . . . . . 2 . . . . . . . . . . 3 . . Interference 12 | . 1 . . . . . . . . . . . . 3 . . 5 3 . Matter Decay 1 | . . . . . . . . . . . . . . . . . . 1 . Damage (minor) 2 | . . . . . . . . . . . . . . . . . 2 . . Siege Activations . | . . . . . . . . . . . . . . . . . . . . Martial Activations . | . . . . . . . . . . . . . . . . . . . . Shielding Activations . | . . . . . . . . . . . . . . . . . . . . Robots Disrupted 2 | . . . . . . . . . . . . . . . . . . 2 . Combat Hostiles 2 | . . . . . . . . . . . . . . . . . . 2 . Robots Corrupted 32 | . . . . . . . . . . . 1 1 . . . 3 2 18 7 Combat Hostiles 26 | . . . . . . . . . . . 1 1 . . . . 1 16 7 Parts Fried 46 | . . . . . . 2 . 1 . . 1 1 . . . 2 1 29 9 Impact Corruptions 44 | . . . . . . 2 . . . . . . . . . 7 1 7 27 Robots Melted 2 | . . . . . . . . 2 . . . . . . . . . . . Combat Hostiles 2 | . . . . . . . . 2 . . . . . . . . . . . Parts Melted 19 | . . . . . . . . 11 2 . . . . . . . . 6 . Heat Transferred 9849 | 225 1303 . . 111 333 . . 4000 350 . 350 200 37 . . . . 2385 555 Parts Sabotaged 2 | . . . . . . . . . . . . . . . . . 2 . . Parts Stolen . | . . . . . . . . . . . . . . . . . . . . Parts Stripped . | . . . . . . . . . . . . . . . . . . . . Power Chain Reactions 20 | . . . . . . . 1 2 . . 7 1 . . . . . 9 . Alert | -11 -10 -10 -10 -9 -8 -7 -7 -7 -6 -5 -5 -5 -5 -5 -4 -3 -2 -1 -1 ------- Run | Yrd Mat Min Exi Min Mat Fac Gar Fac Fac Fac Ext Cet Arc Hub Fac Res Res Acc Com Maximum Alert Level 5 | . 1 . . . 1 2 3 2 1 1 2 2 1 . . 2 3 5 4 Low Security (%) 51 | 100 74 100 . 100 80 75 . . 57 28 86 . 17 100 100 65 45 . . Level 1 14 | . 25 . . . 19 12 17 . 42 71 3 45 82 . . 8 2 . . Level 2 17 | . . . . . . 12 28 100 . . 9 54 . . . 26 21 14 . Level 3 10 | . . . . . . . 53 . . . . . . . . . 29 41 29 Level 4 4 | . . . . . . . . . . . . . . . . . . 18 70 Level 5 . | . . . . . . . . . . . . . . . . . . 11 . High Security . | . . . . . . . . . . . . . . . . . . 13 . Max Security . | . . . . . . . . . . . . . . . . . . . . Peak Influence 1885 | 10 230 70 . 95 351 466 1084 662 305 374 576 435 238 173 75 474 1084 1885 1205 Initial 1195 | . 3 70 . . 17 2 320 569 244 142 108 315 163 70 75 . . 643 1195 Average 342 | 2 88 12 . 27 133 135 706 540 163 245 91 395 207 62 27 154 414 1166 1122 Influence Increases 11491 | 20 421 1 . 146 777 731 874 729 865 498 994 224 120 344 139 655 1626 1837 490 Destroy 0b10 Robot/C 6560 | . 240 . . 40 420 480 460 440 540 280 500 160 80 220 60 320 940 1100 280 Destroy 0b10 Robot/NC 715 | 20 30 . . 10 75 25 . 50 25 40 95 5 5 20 10 85 165 50 5 Destroy Leader 1294 | . 54 . . 10 136 102 30 126 122 62 52 . . 64 20 70 204 172 70 Allied During Kill 242 | . . . . . . . 7 . . . 192 20 3 . . . . 20 . Successful Hack 159 | . 19 . . . 20 4 28 12 12 . . . . . 10 7 47 . . Disable Machine 330 | . . . . . 15 60 15 30 . 30 30 . 30 30 15 . 15 60 . Anti-Garrison Action 150 | . . . . . . . 150 . . . . . . . . . . . . Destroy Structure 826 | . 3 1 . 11 21 30 79 26 61 26 110 24 2 10 24 8 165 195 30 Partial Spotted 60 | . . . . . 15 . . . . . . . . . . 15 15 15 . Lose Combat Pursuer 1155 | . 75 . . 75 75 30 105 45 105 60 15 15 . . . 150 75 225 105 Influence Decreases 10434 | 15 243 184 . 101 817 278 248 1314 1072 568 652 379 326 392 294 655 554 1041 1301 Entered New Map 3128 | . 2 113 . . 28 3 138 515 255 150 114 249 246 133 80 . . 429 673 Time Decay 5176 | 15 231 61 . 101 469 245 . 559 528 368 330 100 60 219 205 355 480 482 368 Lost Part 870 | . 10 10 . . 20 30 110 70 60 50 . 10 . 40 . . 70 130 260 Lost Ally 150 | . . . . . . . . 20 . . 90 20 20 . . . . . . Purge Threat 1110 | . . . . . 300 . . 150 229 . 118 . . . 9 300 4 . . Squads Dispatched 80 | . 1 . . . 2 9 . 9 9 2 3 . . 4 1 3 12 21 4 Investigation 7 | . . . . . . 1 . . . . 2 . . 1 . 2 . 1 . Extermination 23 | . . . . . . 2 . 3 2 2 . . . 1 1 . 6 4 2 Reinforcement 24 | . 1 . . . 2 . . 4 4 . 1 . . 2 . 1 5 3 1 Assault 11 | . . . . . . 1 . 1 . . . . . . . . 1 7 1 Garrison 15 | . . . . . . 5 . 1 3 . . . . . . . . 6 . Intercept . | . . . . . . . . . . . . . . . . . . . . Searches Triggered . | . . . . . . . . . . . . . . . . . . . . Construction Impeded 6 | . . . . . . . . 1 . . 1 . . . . 1 1 2 . Haulers Reinforced 3 | . . . . . . . . 1 . . . . . 1 . . 1 . . Active Scanning Responses . | . . . . . . . . . . . . . . . . . . . . Cargo Convoy Interrupts 3 | . . . . . . . . 1 1 . . . . . . . 1 . . Stealth | -11 -10 -10 -10 -9 -8 -7 -7 -7 -6 -5 -5 -5 -5 -5 -4 -3 -2 -1 -1 --------- Run | Yrd Mat Min Exi Min Mat Fac Gar Fac Fac Fac Ext Cet Arc Hub Fac Res Res Acc Com Distress Signals 38 | . 3 . . . 5 . . 3 1 1 1 2 . 2 . 9 6 4 1 Communications Jammed . | . . . . . . . . . . . . . . . . . . . . Distress Signals . | . . . . . . . . . . . . . . . . . . . . Times Spotted 507 | . 18 . . 7 40 26 22 35 39 18 29 11 7 17 8 54 70 79 27 Peak Tracking Total 14 | . 6 . . 4 4 4 5 6 10 7 6 5 2 6 6 10 14 6 6 Tactical Retreats 45 | . 2 . . 2 3 1 5 2 6 2 1 1 . . . 5 4 6 5 ECM-based Alert Blocks 1 | . . . . . . . . . . . . . . . . . . . 1 Traps | -11 -10 -10 -10 -9 -8 -7 -7 -7 -6 -5 -5 -5 -5 -5 -4 -3 -2 -1 -1 ------- Run | Yrd Mat Min Exi Min Mat Fac Gar Fac Fac Fac Ext Cet Arc Hub Fac Res Res Acc Com Traps Triggered 15 | . . . . . . 3 5 . . 1 . . . . 1 2 . 3 . Indirectly . | . . . . . . . . . . . . . . . . . . . . Trap Hack Attempts . | . . . . . . . . . . . . . . . . . . . . Triggered . | . . . . . . . . . . . . . . . . . . . . Disarmed . | . . . . . . . . . . . . . . . . . . . . Reprogrammed . | . . . . . . . . . . . . . . . . . . . . Reused . | . . . . . . . . . . . . . . . . . . . . Traps Extracted . | . . . . . . . . . . . . . . . . . . . . Installed . | . . . . . . . . . . . . . . . . . . . . Triggered . | . . . . . . . . . . . . . . . . . . . . Machines | -11 -10 -10 -10 -9 -8 -7 -7 -7 -6 -5 -5 -5 -5 -5 -4 -3 -2 -1 -1 ---------- Run | Yrd Mat Min Exi Min Mat Fac Gar Fac Fac Fac Ext Cet Arc Hub Fac Res Res Acc Com Machines Disabled 27 | . . . . . 1 4 6 2 . 2 2 . 2 2 1 . 1 4 . Max in Single Turn 1 | . . . . . 1 1 1 1 . 1 1 . . 1 1 . 1 1 . Garrison Access 1 | . . . . . . . . . . . . . . . . 1 . . . Garrison Relay 3 | . . . . . . . 3 . . . . . . . . . . . . Network Hub 2 | . . . . . . . . . . . . . . 2 . . . . . Energy Cycler 1 | . . . . . . . . . . . 1 . . . . . . . . Machines Repaired . | . . . . . . . . . . . . . . . . . . . . Machines Dismantled 1 | . . . . . . . . . . . . . . 1 . . . . . Machines Sabotaged . | . . . . . . . . . . . . . . . . . . . . Overloaded Fab Kills . | . . . . . . . . . . . . . . . . . . . . Hacking | -11 -10 -10 -10 -9 -8 -7 -7 -7 -6 -5 -5 -5 -5 -5 -4 -3 -2 -1 -1 --------- Run | Yrd Mat Min Exi Min Mat Fac Gar Fac Fac Fac Ext Cet Arc Hub Fac Res Res Acc Com Machines Accessed 63 | . 5 1 2 . 11 7 2 4 7 . 3 . . 2 4 1 7 5 2 Terminals 38 | . 4 . . . 8 . 2 2 4 . 3 . . 2 2 1 6 2 2 Fabricators 5 | . . . . . . 4 . . . . . . . . . . 1 . . Repair Stations 1 | . . . . . . . . . . . . . . . 1 . . . . Recycling Units 4 | . 1 . . . 1 1 . . 1 . . . . . . . . . . Scanalyzers 6 | . . . . . 2 . . 1 2 . . . . . 1 . . . . Garrison Access 6 | . . . . . . 2 . 1 . . . . . . . . . 3 . Total Hacks 159 | . 14 1 4 . 27 14 4 8 14 . 6 . . 3 16 12 17 17 2 Successful 60 | . 7 1 4 . 13 7 2 2 5 . 2 . . . 6 5 6 . . Failed 95 | . 6 . . . 13 7 2 6 8 . 4 . . 3 9 7 11 17 2 Catastrophic 18 | . . . . . 1 2 . 2 1 . 1 . . 1 2 2 4 1 1 Database Lockouts 4 | . 1 . . . 1 . . . 1 . . . . . 1 . . . . Manual 28 | . 7 . 1 . 11 . . 2 . . . . . . 3 . 4 . . Terminals 100 | . 12 . . . 20 . 4 4 9 . 6 . . 3 9 12 15 4 2 Fabricators 12 | . . . . . . 10 . . . . . . . . . . 2 . . Repair Stations 2 | . . . . . . . . . . . . . . . 2 . . . . Recycling Units 5 | . 2 . . . 1 1 . . 1 . . . . . . . . . . Scanalyzers 18 | . . . . . 6 . . 3 4 . . . . . 5 . . . . Garrison Access 17 | . . . . . . 3 . 1 . . . . . . . . . 13 . Terminal Hacks 40 | . 6 1 4 . 9 . 2 1 2 . 2 . . . 2 5 6 . . Record 3 | . . . 3 . . . . . . . . . . . . . . . . Robot Analysis 5 | . 2 . . . 3 . . . . . . . . . . . . . . Prototype ID Bank 1 | . 1 . . . . . . . . . . . . . . . . . . Open Door 2 | . . 1 . . . . . . . . 1 . . . . . . . . Level Access Points 1 | . . . . . . . . . . . . . . . . . 1 . . Branch Access Points 1 | . . . . . . . . . . . . . . . . 1 . . . Emergency Access Points 1 | . . . . . . . 1 . . . . . . . . . . . . Terminal Index 1 | . . . . . . . . . . . . . . . . . 1 . . Alert Level 2 | . . . . . . . . . . . . . . . . 1 1 . . Unreport Threat 10 | . . . . . 2 . . 1 2 . 1 . . . 1 2 1 . . Locate Traps 3 | . 1 . . . 2 . . . . . . . . . . . . . . Hauler Manifests 5 | . 1 . . . 1 . . . . . . . . . 1 1 1 . . Zone Layout 3 | . 1 . . . 1 . . . . . . . . . . . 1 . . Patrol Navigation 1 | . . . . . . . 1 . . . . . . . . . . . . Proto ID Catalog 1 | . . . 1 . . . . . . . . . . . . . . . . Fabricator Hacks 4 | . . . . . . 4 . . . . . . . . . . . . . Network Status 2 | . . . . . . 2 . . . . . . . . . . . . . Build 2 | . . . . . . 2 . . . . . . . . . . . . . Repair Station Hacks 2 | . . . . . . . . . . . . . . . 2 . . . . Scan Component 1 | . . . . . . . . . . . . . . . 1 . . . . Repair 1 | . . . . . . . . . . . . . . . 1 . . . . Recycling Unit Hacks 4 | . 1 . . . 1 1 . . 1 . . . . . . . . . . Retrieve Matter 1 | . . . . . . 1 . . . . . . . . . . . . . Retrieve Components 3 | . 1 . . . 1 . . . 1 . . . . . . . . . . Scanalyzer 8 | . . . . . 3 . . 1 2 . . . . . 2 . . . . Retrieve Study 8 | . . . . . 3 . . 1 2 . . . . . 2 . . . . Garrison Access Hacks 2 | . . . . . . 2 . . . . . . . . . . . . . Unlock Access 2 | . . . . . . 2 . . . . . . . . . . . . . Unauthorized Hacks . | . . . . . . . . . . . . . . . . . . . . Terminals . | . . . . . . . . . . . . . . . . . . . . Fabricators . | . . . . . . . . . . . . . . . . . . . . Repair Stations . | . . . . . . . . . . . . . . . . . . . . Recycling Units . | . . . . . . . . . . . . . . . . . . . . Scanalyzers . | . . . . . . . . . . . . . . . . . . . . Garrison Access . | . . . . . . . . . . . . . . . . . . . . Data Cores Recovered 1 | . . . . . . . . . . . . . . . . . 1 . . Used . | . . . . . . . . . . . . . . . . . . . . Hacking Detections 47 | . 5 . . . 8 4 2 4 5 . 3 . . 2 2 1 5 5 1 Full Trace Events 3 | . 1 . . . . . . . . . 1 . . 1 . . . . . Feedback Events . | . . . . . . . . . . . . . . . . . . . . Feedback Blocked . | . . . . . . . . . . . . . . . . . . . . Robot Schematics Acquired . | . . . . . . . . . . . . . . . . . . . . Robots Built . | . . . . . . . . . . . . . . . . . . . . Authchips . | . . . . . . . . . . . . . . . . . . . . Time . | . . . . . . . . . . . . . . . . . . . . Total Robot Build Rating . | . . . . . . . . . . . . . . . . . . . . Part Schematics Acquired . | . . . . . . . . . . . . . . . . . . . . Parts Built 3 | . . . . . . 3 . . . . . . . . . . . . . Authchips . | . . . . . . . . . . . . . . . . . . . . Time 179 | . . . . . . 179 . . . . . . . . . . . . . Total Part Build Rating 13 | . . . . . . 13 . . . . . . . . . . . . . Part Studies Acquired 8 | . . . . . 3 . . 1 2 . . . . . 2 . . . . Parts Repaired 1 | . . . . . . . . . . . . . . . 1 . . . . Time 62 | . . . . . . . . . . . . . . . 62 . . . . Parts Recycled . | . . . . . . . . . . . . . . . . . . . . Recycled Matter . | . . . . . . . . . . . . . . . . . . . . Retrieved Matter . | . . . . . . . . . . . . . . . . . . . . Retrieved Components 28 | . 9 . . . 9 . . . 10 . . . . . . . . . . Parts Scanalyzed . | . . . . . . . . . . . . . . . . . . . . Part Schematics Acquired . | . . . . . . . . . . . . . . . . . . . . Parts Damaged . | . . . . . . . . . . . . . . . . . . . . Bothacking | -11 -10 -10 -10 -9 -8 -7 -7 -7 -6 -5 -5 -5 -5 -5 -4 -3 -2 -1 -1 ------------ Run | Yrd Mat Min Exi Min Mat Fac Gar Fac Fac Fac Ext Cet Arc Hub Fac Res Res Acc Com Used RIF Installer . | . . . . . . . . . . . . . . . . . . . . Robots Hacked . | . . . . . . . . . . . . . . . . . . . . Non-combat . | . . . . . . . . . . . . . . . . . . . . Combat . | . . . . . . . . . . . . . . . . . . . . Robot Hacks Applied . | . . . . . . . . . . . . . . . . . . . . Relay Couplers Released 14 | . . . . . . . 13 . . . . . . . . 1 . . . Machine Destruction 14 | . . . . . . . 13 . . . . . . . . 1 . . . Fabnet Peak Effective % . | . . . . . . . . . . . . . . . . . . . . Robots Rewired 7 | . . . . . . . . . . . 6 . . . . . . 1 . Allies Hacked 1 | . . . . . . . . . . . 1 . . . . . . . . Hacks Repelled . | . . . . . . . . . . . . . . . . . . . . Allies | -11 -10 -10 -10 -9 -8 -7 -7 -7 -6 -5 -5 -5 -5 -5 -4 -3 -2 -1 -1 -------- Run | Yrd Mat Min Exi Min Mat Fac Gar Fac Fac Fac Ext Cet Arc Hub Fac Res Res Acc Com Total Allies 15 | . . 1 . 1 . . 1 . . . 11 . . . . . . 1 . Largest Group 8 | . . 1 . 1 . . 1 1 . . 8 2 1 . . . . 1 . Highest-Rated Group 236 | . . 31 . 31 . . 20 20 . . 236 78 39 . . . . 64 . Highest-Rated Ally 64 | . . 31 . 31 . . 20 20 . . 39 39 39 . . . . 64 . Initial Warlord ECA Mod 5 | . . . . . . . . 5 4 3 3 3 3 3 2 1 . . . Total Orders 12 | . . . . . . . . . . . . . . . . 12 . . . EXPLORE 11 | . . . . . . . . . . . . . . . . 11 . . . RETURN 1 | . . . . . . . . . . . . . . . . 1 . . . Ally Attacks 98 | . . . . 1 . . 3 . . . 54 29 8 . . . . 3 . Total Damage 1965 | . . . . . . . 122 . . . 1175 434 128 . . . . 106 . Kills 18 | . . . . . . . 1 . . . 12 4 . . . . . 1 . Allies Corrupted 1 | . . . . . . . . . . . . . . . . . . 1 . Allies Melted 1 | . . . . . . . . . . . 1 . . . . . . . . Intel | -11 -10 -10 -10 -9 -8 -7 -7 -7 -6 -5 -5 -5 -5 -5 -4 -3 -2 -1 -1 ------- Run | Yrd Mat Min Exi Min Mat Fac Gar Fac Fac Fac Ext Cet Arc Hub Fac Res Res Acc Com Active Infowar (turns) 4491 | 7 70 227 442 238 1951 1143 . . . . . . . . 266 . . . 147 Optics 2731 | . . . . . 1588 1143 . . . . . . . . . . . . . Terrain 209 | . . . . . 209 . . . . . . . . . . . . . . Structural 1687 | . . 227 442 238 514 . . . . . . . . . 266 . . . . Seismic 410 | 7 70 . . . 333 . . . . . . . . . . . . . . ECM 147 | . . . . . . . . . . . . . . . . . . . 147 Robot Analysis Total 5 | . 2 . . . 3 . . . . . . . . . . . . . . Derelict Logs Recovered 3 | . . 2 . 1 . . . . . . . . . . . . . . . Drone Launches 10 | . . . . . . . . . . . . . . . . 10 . . . Drone Recoveries 9 | . . . . . . . . . . . . . . . . 9 . . . Exploration | -11 -10 -10 -10 -9 -8 -7 -7 -7 -6 -5 -5 -5 -5 -5 -4 -3 -2 -1 -1 ------------- Run | Yrd Mat Min Exi Min Mat Fac Gar Fac Fac Fac Ext Cet Arc Hub Fac Res Res Acc Com Turns Passed 20210 | 98 743 397 442 362 3010 1270 1179 1655 1728 850 1352 215 129 649 585 1423 1844 1438 841 Spaces Moved 10411 | 42 343 197 231 174 1260 635 644 778 870 491 721 144 49 328 327 883 987 802 505 Core 246 | 12 . . . . 1 . . . . . . . . . . . . . 233 Treads 5 | . . . . . . . . . . . . . . . . . . . 5 Legs 10160 | 30 343 197 231 174 1259 635 644 778 870 491 721 144 49 328 327 883 987 802 267 Wheels . | . . . . . . . . . . . . . . . . . . . . Hover . | . . . . . . . . . . . . . . . . . . . . Flight . | . . . . . . . . . . . . . . . . . . . . Fastest Speed 50 | 50 120 190 190 190 112 113 110 110 102 105 107 112 117 115 105 105 107 110 50 Average Speed 127 | 100 140 190 190 190 164 115 114 139 143 107 108 115 117 116 109 106 110 118 85 Slowest Speed 400 | 120 190 190 190 190 270 186 188 257 185 180 112 117 117 117 175 107 178 176 400 Overloaded Moves . | . . . . . . . . . . . . . . . . . . . . Propulsion Burnouts . | . . . . . . . . . . . . . . . . . . . . Robots Hopped . | . . . . . . . . . . . . . . . . . . . . Potential Cave-ins 2 | . . . . . . . . . . . . . . . . . . 2 . Cave-ins Triggered . | . . . . . . . . . . . . . . . . . . . . Exploration Rate (%) 40 | 3 61 53 61 35 88 19 69 28 17 12 68 56 65 34 10 70 18 18 17 Regions Visited 19 Branch Regions 8 Pre-discovered Areas 4 | . . 1 1 2 . . . . . . . . . . . . . . . Known Exits Taken 9 | . . . . . 1 1 . 1 1 1 . . . 1 1 1 1 . . Unknown Exits Taken 9 | 1 1 1 1 1 . . . . . . 1 1 1 . . . . 1 . Scrap Searched 1 | . . 1 . . . . . . . . . . . . . . . . . Spaces Dug 74 | . . 1 . . 2 8 6 . 2 . . . . 3 9 4 18 15 6 Terrain Destroyed 396 | . . 1 . 11 16 30 19 24 74 5 68 3 . 4 11 4 44 70 12 Melee 38 | . . . . . 2 6 6 . 2 . . . . 2 1 4 13 1 1 Projectile 99 | . . 1 . . . . . 15 3 3 . . . 2 10 . 29 25 11 AOE 254 | . . . . 11 14 24 13 9 69 . 68 3 . . . . . 43 . Terrain Rammed . | . . . . . . . . . . . . . . . . . . . . Walls Destroyed . | . . . . . . . . . . . . . . . . . . . . Machines Disabled . | . . . . . . . . . . . . . . . . . . . . Actions | -11 -10 -10 -10 -9 -8 -7 -7 -7 -6 -5 -5 -5 -5 -5 -4 -3 -2 -1 -1 --------- Run | Yrd Mat Min Exi Min Mat Fac Gar Fac Fac Fac Ext Cet Arc Hub Fac Res Res Acc Com Total 15415 | 71 479 216 237 193 2019 1050 909 1157 1213 721 1195 175 88 511 515 1256 1504 1128 778 Wait 2616 | . 32 10 . 4 511 274 66 202 170 112 320 1 6 88 130 224 208 121 137 Move 10393 | 41 342 196 230 173 1259 635 643 777 869 490 720 143 48 327 326 882 986 801 505 Hop . | . . . . . . . . . . . . . . . . . . . . Pick Up 279 | 8 20 2 3 3 45 14 17 20 34 16 8 4 . 7 9 20 27 11 11 Fast Attach 71 | . . 1 . . 7 2 1 5 4 4 4 . 2 3 . 5 16 8 9 Attach 134 | 7 3 1 . . 15 7 10 12 16 7 1 2 . 3 8 5 12 10 15 Detach 9 | . 1 . . . 3 . . . 1 . . . . . . 1 . . 3 Swap 244 | . 10 3 . 5 33 16 15 14 21 11 20 4 2 12 5 14 29 26 4 Drop 247 | . 6 2 4 2 42 10 9 21 25 16 11 2 3 6 4 21 37 16 10 Fire 1206 | 15 65 1 . 6 101 83 106 106 71 65 69 19 27 60 27 61 173 116 35 Melee 126 | . . . . . 3 9 23 . 2 . 1 . . 2 1 5 14 17 49 Ram . | . . . . . . . . . . . . . . . . . . . . Kick 18 | . . . . . . . . . . . 1 . . . 5 10 2 . . Crush . | . . . . . . . . . . . . . . . . . . . . Escape Stasis 27 | . . . . . . . 19 . . . . . . . . 8 . . . Rewire 42 | . . . . . . . . . . . 40 . . . . . . 2 . Trap . | . . . . . . . . . . . . . . . . . . . . Miscellaneous 3 | . . . . . . . . . . . . . . 3 . . . . . Route ------- -11/Scrapyard -10/Materials (discovered 2 exits: [*Mat] / *Min) -10/Mines -10/Exiles (discovered 2 exits: [*Min x2]) -9/Mines -8/Materials (discovered 2 exits: *Fac x2) -7/Factory (discovered 2 exits: Gar / Gar) -7/Garrison (discovered 3 exits: *Fac x3) -7/Factory (discovered 4 exits: *Fac x2 / *Low x2) -6/Factory (discovered 3 exits: *Fac x2 / *Low) -5/Factory (discovered 2 exits: *Fac / *Ext) -5/Extension (discovered 3 exits: *Fac x2 / *Cet) -5/Cetus (discovered 2 exits: *Fac / [*Arc]) -5/Archives -5/Hub_04(d) -4/Factory -3/Research (discovered 4 exits: *Res / *Arm / *Qua x2) -2/Research (discovered 3 exits: *Acc x3) -1/Access -1/Command History --------- Turn | Location | Event 24 | -11/Scrapyard | Discovered new exit (range 15) 99 | -11/Scrapyard | Entered Materials 261 | -10/Materials | Central database locked down 322 | -10/Materials | Build established: Mutant 695 | -10/Materials | Core integrity fell below 50% 763 | -10/Materials | Discovered new exit (range 4) 786 | -10/Materials | Discovered new exit (range 15) 842 | -10/Materials | Entered Mines 845 | -10/Mines | Received a Mining Laser from a helpful Derelict 871 | -10/Mines | Met a Derelict bent on vengeance 902 | -10/Mines | Met a Derelict who couldn't figure out how to use a Trap Extractor 951 | -10/Mines | Learned location of Zion (-7) 1161 | -10/Mines | Received a Rocket Launcher from a helpful Derelict 1229 | -10/Mines | Deemed a non-threat by the Exiles lab entrance 1229 | -10/Mines | Discovered new exit (range 5) 1239 | -10/Mines | Entered Exiles 1270 | -10/Exiles | Discovered new exit (range 15) 1323 | -10/Exiles | Met 8R-AWN 1350 | -10/Exiles | Met EX-HEX 1405 | -10/Exiles | Met EX-BIN 1433 | -10/Exiles | Aligned with FarCom system 1435 | -10/Exiles | Given EX-Vault access code 1479 | -10/Exiles | Opened EX-Vault 1498 | -10/Exiles | Found Modified TNC 1543 | -10/Exiles | Warned to stay clear of 0b10 Research branches 1600 | -10/Exiles | Met EX-DEC 1666 | -10/Exiles | Discovered new exit (range 10) 1681 | -10/Exiles | Left Exiles lab with Modified TNC 1681 | -10/Exiles | Entered Mines 1686 | -9/Mines | Escorted by a lone wolf Derelict 1706 | -9/Mines | Learned location of Storage (-9) 1880 | -9/Mines | YI-UF0 nonchalantly dropped a Grenade Launcher on the ground 1973 | -9/Mines | Build established: Scavenger-Mutant 2027 | -9/Mines | Discovered new exit (range 8) 2043 | -9/Mines | Entered Materials 2043 | -8/Materials | Evolved 4 slots: Propulsion x2, Utility x2 3661 | -8/Materials | Discovered new exit (range 20) 4013 | -8/Materials | Build established: Mutant 4312 | -8/Materials | Discovered new exit (range 12) 4380 | -8/Materials | Central database locked down 5052 | -8/Materials | Identified exit to Factory 5053 | -8/Materials | Entered Factory 5053 | -7/Factory | Evolved 2 slots: Propulsion x1, Utility x1 5258 | -7/Factory | Fabricated Imp. Heavy Armor Plating? 5519 | -7/Factory | Identified exit to Garrison 5521 | -7/Factory | Fabricated Remote Datajack? 5576 | -7/Factory | Garrison activated, responded to threat 6124 | -7/Factory | Destroyed 7 combat bots 6130 | -7/Factory | Garrison activated, responded to threat 6253 | -7/Factory | First assault squad dispatched 6323 | -7/Factory | Identified exit to Garrison 6323 | -7/Factory | Entered Garrison 6529 | -7/Garrison | Lost 3 parts (1n2u) 6619 | -7/Garrison | Triggered checkpoint 6670 | -7/Garrison | Triggered checkpoint 6683 | -7/Garrison | Triggered checkpoint 6812 | -7/Garrison | Discovered new exit (range 13) 6825 | -7/Garrison | Identified exit to Factory 6847 | -7/Garrison | Triggered checkpoint 6871 | -7/Garrison | Garrison Relay disabled 6974 | -7/Garrison | Discovered exit to Factory (range 9) 6989 | -7/Garrison | Rescued a captive Derelict 7019 | -7/Garrison | Triggered checkpoint 7064 | -7/Garrison | Garrison Relay disabled 7141 | -7/Garrison | Discovered exit to Factory (range 9) 7190 | -7/Garrison | Triggered checkpoint 7226 | -7/Garrison | Garrison Relay disabled 7502 | -7/Garrison | Entered Factory 7502 | -7/Factory | Accompanied by 1 ally 7617 | -7/Factory | Build established: Scavenger-Mutant 7639 | -7/Factory | Discovered new exit (range 16) 7747 | -7/Factory | Identified exit to Lower Caves 7756 | -7/Factory | Discovered new exit (range 16) 8289 | -7/Factory | Discovered exit to Lower Caves (range 16) 8294 | -7/Factory | Garrison activated, responded to threat 8302 | -7/Factory | First assault squad dispatched 8352 | -7/Factory | Core integrity fell below 50% 8984 | -7/Factory | Cargo convoy interrupted 9034 | -7/Factory | Discovered new exit (range 12) 9155 | -7/Factory | Identified exit to Factory 9157 | -7/Factory | Entered another Factory area 9157 | -6/Factory | Evolved 2 slots: Power x1, Utility x1 9161 | -6/Factory | Lost 3 parts (1p2n) 9502 | -6/Factory | Found Powered Armor 9531 | -6/Factory | Discovered new exit (range 5) 9571 | -6/Factory | Identified exit to Factory 9802 | -6/Factory | Discovered exit to Factory (range 5) 10034 | -6/Factory | Discovered new exit (range 14) 10057 | -6/Factory | Identified exit to Lower Caves 10162 | -6/Factory | Cargo convoy interrupted 10177 | -6/Factory | Garrison activated, responded to threat 10266 | -6/Factory | Lost 4 parts (1p1n2u) 10596 | -6/Factory | Central database locked down 10885 | -6/Factory | Entered another Factory area 10885 | -5/Factory | Evolved 2 slots: Propulsion x1, Utility x1 11154 | -5/Factory | Lost 4 parts (1n2u1w) 11265 | -5/Factory | Discovered new exit (range 7) 11274 | -5/Factory | Identified exit to Factory 11695 | -5/Factory | Discovered new exit (range 15) 11733 | -5/Factory | Identified exit to Extension 11735 | -5/Factory | Entered Extension 11936 | -5/Extension | Lost 3 allies 12161 | -5/Extension | Rescued a captive Derelict 12162 | -5/Extension | Rescued a captive Derelict 12262 | -5/Extension | Energy Cycler disabled 12262 | -5/Extension | Rescued a captive Derelict 12262 | -5/Extension | Rescued a captive Derelict 12262 | -5/Extension | Rescued a captive Derelict 12262 | -5/Extension | Rescued a captive Derelict 12263 | -5/Extension | Rescued a captive Derelict 12263 | -5/Extension | Rescued a captive Derelict 12264 | -5/Extension | Rescued a captive Derelict 12264 | -5/Extension | Rescued a captive Derelict 12268 | -5/Extension | Rescued a captive Derelict 12268 | -5/Extension | Rescued a captive Derelict 12460 | -5/Extension | Disrupted transfer network 12768 | -5/Extension | Discovered exit to Factory (range 14) 13049 | -5/Extension | Discovered new exit (range 16) 13050 | -5/Extension | Discovered exit to Factory (range 15) 13087 | -5/Extension | Entered Cetus 13087 | -5/Cetus | Accompanied by 2 allies 13108 | -5/Cetus | Destroyed Cetus Guard 13109 | -5/Cetus | Spotted Cetus Guard 13109 | -5/Cetus | Spotted Cetus Guard 13110 | -5/Cetus | Spotted Cetus Guard 13111 | -5/Cetus | Destroyed Cetus Guard 13115 | -5/Cetus | Destroyed Cetus Guard 13115 | -5/Cetus | Allies destroyed Cetus Guard 13178 | -5/Cetus | Discovered new exit (range 16) 13200 | -5/Cetus | Spotted Cetus Guard 13201 | -5/Cetus | Spotted Cetus Guard 13207 | -5/Cetus | Spotted Cetus Guard 13209 | -5/Cetus | Allies destroyed Cetus Guard 13210 | -5/Cetus | Spotted Cetus Guard 13211 | -5/Cetus | Allies destroyed Cetus Guard 13218 | -5/Cetus | Allies destroyed Cetus Guard 13231 | -5/Cetus | Destroyed Cetus Guard 13243 | -5/Cetus | Discovered exit to Factory (range 15) 13248 | -5/Cetus | Met Revision 17 13302 | -5/Cetus | Entered Archives 13302 | -5/Archives | Accompanied by 1 ally 13414 | -5/Archives | Discovered new exit (range 15) 13431 | -5/Archives | Entered Hub_04(d) 13692 | -5/Hub_04(d) | Build established: Mutant 13850 | -5/Hub_04(d) | Lost 3 parts (3u) 14023 | -5/Hub_04(d) | Network Hub disabled 14068 | -5/Hub_04(d) | Network Hub disabled 14068 | -5/Hub_04(d) | Spotted Lightning 14075 | -5/Hub_04(d) | Discovered exit to Factory (range 5) 14080 | -5/Hub_04(d) | Entered Factory 14080 | -4/Factory | Evolved 2 slots: Utility x1, Weapon x1 14235 | -4/Factory | Central database locked down 14546 | -4/Factory | Repaired Myomer Leg+ 14628 | -4/Factory | Discovered new exit (range 14) 14664 | -4/Factory | Identified exit to Research 14665 | -4/Factory | Entered Research 14665 | -3/Research | Evolved 2 slots: Utility x2 14865 | -3/Research | Revision forces began assault on 0b10 14890 | -3/Research | Build established: Scavenger-Gunner 14908 | -3/Research | Destroyed 14 combat bots 14917 | -3/Research | Met up with Revision 17++ 14969 | -3/Research | Found Imp. Powered Armor 14971 | -3/Research | Found Imp. Powered Armor 14973 | -3/Research | Found Imp. Powered Armor 14975 | -3/Research | Found Imp. Powered Armor 14977 | -3/Research | Found Imp. Powered Armor 15104 | -3/Research | Found Prototype Processor 15141 | -3/Research | Identified Spectral Analyzer 15151 | -3/Research | Found Spectral Analyzer 15269 | -3/Research | Found Gamma Bomb Array 15309 | -3/Research | Identified exit to Armory 15309 | -3/Research | Identified exit to Quarantine 15365 | -3/Research | Research terminal network offline 15496 | -3/Research | Found Gamma Bomb Array 15533 | -3/Research | Spotted Striker 15540 | -3/Research | Spotted Striker 15554 | -3/Research | Discovered new exit (range 111) 15642 | -3/Research | Spotted B-86 Titan 15758 | -3/Research | Spotted Striker 16067 | -3/Research | Identified exit to Research 16088 | -3/Research | Entered another Research area 16088 | -2/Research | Evolved 2 slots: Power x1, Weapon x1 16340 | -2/Research | Identified exit to Access 16451 | -2/Research | Build established: Tank 16944 | -2/Research | Cargo convoy interrupted 16944 | -2/Research | Spotted Executioner 16944 | -2/Research | Spotted Executioner 16948 | -2/Research | Destroyed Executioner 16958 | -2/Research | Destroyed Executioner 16986 | -2/Research | System corruption reached 10% 17012 | -2/Research | Destroyed 10 combat bots 17154 | -2/Research | Found Prototype Processor 17155 | -2/Research | Identified Exp. Core Analyzer 17178 | -2/Research | Lost 3 parts (1p1u1w) 17190 | -2/Research | Found Prototype Processor 17191 | -2/Research | Identified Exp. Targeting Computer 17452 | -2/Research | Build established: Scavenger-Gunner 17838 | -2/Research | First assault squad dispatched 17932 | -2/Research | Entered Access 17932 | -1/Access | Evolved 2 slots: Utility x2 18182 | -1/Access | First assault squad dispatched 18693 | -1/Access | Garrison activated, responded to threat 18786 | -1/Access | Spotted B-99 Colossus 18862 | -1/Access | Garrison activated, responded to threat 19020 | -1/Access | Build established: Scavenger-Tank 19060 | -1/Access | Destroyed 11 combat bots 19148 | -1/Access | Lost 3 parts (1p1n1u) 19178 | -1/Access | High security lockdown imminent 19258 | -1/Access | High security lockdown engaged 19341 | -1/Access | Spotted B-99 Colossus 19346 | -1/Access | Spotted B-99 Colossus 19367 | -1/Access | Discovered new exit (range 3) 19370 | -1/Access | Entered Command 19389 | -1/Command | Lost 5 parts (1n3u1w) 19607 | -1/Command | System corruption reached 10% 19883 | -1/Command | Build established: Scavenger-Gladiator 19976 | -1/Command | Core integrity fell below 50% 19998 | -1/Command | Lost 23 parts (3p4n10u6w) 20120 | -1/Command | First assault squad dispatched 20161 | -1/Command | System corruption reached 30% 20173 | -1/Command | Core integrity fell below 20% 20211 | -1/Command | Destroyed by H-88 Terminator with KE Penetrator Last Messages --------------- 20137_ Connecting with Terminal... 20137_ Current location identified: Command 20141_ System corrupted: Matter fused (-8). 20142_ Slug penetrates Wall. 20142_ K-01 Serf destroyed. 20142_ K-01 Serf collects debris. 20156_ Adv. Melee Analysis Suite destroyed. 20162_ System corrupted: Energy discharge (-31). 20162_ P-80 Master resets P-80 Master, system corruption cleaned. 20167_ Connecting with Terminal... 20172_ Slug penetrates Wall. 20179_ >OF%=NYKFZ3RR<7SW 8M81XN9 20185_ Acquired Adv. Heavy Siege Treads. 20192_ Acquired Enh. Quantum Rifle. 20195_ System corrupted: Energy discharge (-55). 20198_ Phase Gun destroyed. 20201_ P-80 Master resets P-80 Master, system corruption cleaned. 20203_ Lgt. Quantum Reactor destroyed. 20203_ P-80 Master destroyed. 20205_ Slug penetrates Wall. Map ----- +----------------------------------------------------+ | #????????????????????????? | | ######???????????????????? | | +???????????????????? | | #???????????????????? | | #### #???????????? ??????? | | ???# #???????????? ??????? | | ???# #???????????? ??????? | | ???# #???????????? ??????? | | ???# #???????????? ??????? | | ???# #???????????? #?????? | | ???# #???????????? #?????? | | #### #???????????# #?????? | | #???????????# #?????? | | #???????????# #?????? | | #???????????# #?????? | | +???????????# #?????? | | #???????????# #?????? | | ##????????### #?????? | | ##+# ########## #?????? | | # #?????? | | # ########## #?????? | | # ##############?## ######## | | # #??# #h# ] ! # | | ####+##?# h #=! # | | #?# # #g! # | | #?# ??# /p@ # | | #?# """" ????###p # | | " "" ]#?????"""????????# = !# | | "T"" #?????"??????????######## | | """ #???????????????????????? | | #???????????????????????? | | #???????????????????????? | | #######???????????????????????? | | ??????????????????????????????? | | ??????????????????????????????? | | ??????????????????????????????? | | ??????????????????????????????? | | ??????????????????????????????? | | ??????????????????????????????? | | ??????????????????????????????? | | ??????????????????????????????? | | ??????????????????????????????? | | ??????????????????????????????? | | ??????????????????????????????? | | ??????????????????????????????? | | ??????????????????????????????? | | ??????????????????????????????? | | ??????????????????????????????? | | ??????????????????????????????? | | ??????????????????????????????? | +----------------------------------------------------+ Best States ------------- Heat Dissipation 109 Energy Generation 65 Energy Capacity 850 Matter Stores 300 Matter Capacity 300 Sight Range 20 Terrain Scan Range 16 Terrain Scan Density 10 ECM Strength 1 Additional Mass Support 9 Armor Coverage 1425 Resistance: TH 25 Core Shielding 20 Weapon Shielding 66 Point Defense Rating 240 Weapon Cycling 25 Evasion (%) 80 Targeting Accuracy 28 Melee Accuracy 8 Core Analysis 8 Recoil Reduction 2 Kinecelleration 30 Item Schematics ----------------- None Robot Schematics ------------------ None Fabricated ------------ Imp. Heavy Armor Plating | x1 | -7/Factory | Preloaded Remote Datajack | x2 | -7/Factory | Preloaded Repaired ---------- Myomer Leg | 17% | -4/Factory Studied --------- Hvy. Assault Rifle | -8/Materials | Hacked Carbon-fiber Leg | -8/Materials | Hacked Titanium Leg | -8/Materials | Hacked Gauss Rifle | -7/Factory | Hacked Flexi-carbon Leg | -6/Factory | Hacked Angular Momentum Engine | -6/Factory | Hacked Myomer Leg | -4/Factory | Hacked Thunder Leg | -4/Factory | Hacked Alien Tech Used ----------------- None Achievements -------------- Better Safe Than Exploded My Business Is Booming Challenges ------------ None Game ------ Seed CountertargetingBombStatue Manual? 0 Play Time 04:23:25 Cumulative 30.9 hours Start 2026.01.02 @ 02:01:08 End 2026.01.09 @ 17:58:27 Sessions 8 Manual Loads 0 Difficulty Rogue Special Mode None Game No. 14 Rogue 14 Adventurer 0 Explorer 0 Win Type - Total 1 Types 1/0/0/0/0/0/0/0/0/0 Lore% 7 Gallery% 30 Achievement% 48 Wizard Run 0 Options --------- Layout 0 ASCII 0 Keyboard 0 Movement Mouse Keybinds 0 Fullscreen 1 Font 18/SmallcapsGlow Map View 76x50 Zoom Use 2% Tactical HUD 1 Map Filters NONE Filters NONE Steam 1 RUN: e420a15f-1bdf-4d75-8ecb-8f6a1a3b1e96